bitfinex/quotes_SOLUSD_20250904
["timestamp","ask_amount","ask_price","bid_price","bid_amount"]
[1757010937677,0.03,203.3,203.27,0.78]
[1757010937865,40.6,203.29,203.27,0.78]
[1757010938569,26.03,203.3,203.27,0.78]
[1757010938881,26.03,203.3,203.28,0.66]
[1757010939081,40.58,203.29,203.28,0.66]
[1757010939781,26.03,203.3,203.28,0.66]
[1757010939978,40.58,203.29,203.28,4.91930572]
[1757010940489,40.58,203.29,203.27,5.03950044]
[1757010940687,40.58,203.29,203.28,0.66]
[1757010941867,0.03,203.3,203.28,10.16115989]
[1757010942082,40.61,203.3,203.28,10.16115989]
[1757010942390,40.61,203.3,203.29,0.66]
[1757010942586,0.03,203.3,203.29,0.66]
[1757010944588,0.03,203.3,203.29,10.16114356]
[1757010944788,0.03,203.3,203.29,23.75673757]
[1757010948873,0.03,203.32,203.3,13.59559401]
[1757010949196,0.03,203.34,203.32,39.59559401]
[1757010949379,0.03,203.34,203.33,4.58206245]
[1757010949582,0.03,203.34,203.33,5.30206245]
[1757010949784,0.03,203.34,203.33,7.27352552]
[1757010950182,0.03,203.34,203.33,20.86911953]
[1757010950772,0.03,203.34,203.33,25.78723294]
[1757010951091,40.54,203.41,203.33,51.78723294]
[1757010951283,40.54,203.41,203.35,4.58206245]
[1757010951670,40.54,203.41,203.35,5.30206245]
[1757010952882,40.54,203.41,203.35,10.21969215]
[1757010953904,40.54,203.41,203.35,23.81528616]
[1757010954270,0.2,203.43,203.36,13.59559401]
[1757010954476,0.2,203.43,203.42,4.58206245]
[1757010954890,0.2,203.43,203.42,10.21799991]
[1757010955095,0.2,203.43,203.42,23.81359392]
[1757010955892,0.2,203.43,203.42,19.23153147]
[1757010956085,0.2,203.43,203.42,23.81359392]
[1757010956589,0.2,203.43,203.42,19.23153147]
[1757010956780,0.2,203.43,203.42,23.81359392]
[1757010957174,0.2,203.43,203.42,19.23153147]
[1757010957388,0.2,203.43,203.42,23.81359392]
[1757010957984,0.2,203.43,203.42,19.23153147]
[1757010958179,0.2,203.43,203.42,23.81359392]
[1757010959188,0.2,203.43,203.39,14.78087355]
[1757010959393,0.2,203.43,203.39,5.30206245]
[1757010959582,0.2,203.43,203.4,4.58206245]
[1757010960481,0.2,203.43,203.4,5.30206245]
[1757010960897,0.2,203.43,203.4,4.58206245]
[1757010961100,0.2,203.43,203.4,5.30206245]
[1757010961403,0.2,203.43,203.4,4.58206245]
[1757010961702,0.2,203.43,203.4,5.30206245]
[1757010962202,0.2,203.43,203.41,5.30206245]
[1757010962383,0.2,203.43,203.42,4.58206245]
[1757010962578,0.2,203.43,203.42,18.89765646]
[1757010963702,0.2,203.43,203.42,23.81359392]
[1757010966584,0.2,203.43,203.42,19.23153147]
[1757010966906,0.2,203.43,203.42,23.09359392]
[1757010967209,0.2,203.43,203.42,23.81359392]
[1757010970497,0.2,203.43,203.42,25.78427996]
[1757010971423,0.2,203.43,203.42,23.09359392]
[1757010973107,0.2,203.43,203.42,23.81359392]
[1757010973303,0.2,203.43,203.42,19.23153147]
[1757010973614,0.2,203.43,203.42,23.81359392]
[1757010975199,0.2,203.43,203.4,4.61206245]
[1757010975399,0.2,203.43,203.4,9.1941249]
[1757010975623,0.2,203.43,203.4,2.92853935]
[1757010975809,0.2,203.43,203.39,4.91660777]
[1757010976009,0.2,203.43,203.4,3.64853935]
[1757010976422,0.2,203.43,203.4,2.92853935]
[1757010976631,0.2,203.43,203.4,0.72]
[1757010977616,0.2,203.43,203.42,13.59559401]
[1757010977803,0.2,203.43,203.42,18.51153147]
[1757010978007,0.2,203.43,203.42,19.20153147]
[1757010980425,0.2,203.43,203.42,18.51153147]
[1757010981828,0.2,203.43,203.4,4.91622228]
[1757010982003,0.2,203.43,203.4,0.69]
[1757010982208,0.2,203.43,203.41,0.69]
[1757010982609,0.2,203.43,203.4,13.59559401]
[1757010983026,0.2,203.43,203.4,14.28559401]
[1757010983229,4.94501665,203.46,203.41,0.69]
[1757010983230,0.03,203.46,203.41,0.69]
[1757010983535,0.03,203.46,203.44,2.92853935]
[1757010983706,0.03,203.46,203.43,2.92853935]
[1757010983906,0.03,203.46,203.43,3.61853935]
[1757010984219,0.03,203.46,203.44,0.69]
[1757010984626,0.03,203.46,203.45,0.69]
[1757010985224,0.03,203.46,203.45,5.60521258]
[1757010987419,0.03,203.46,203.45,8.53375193]
[1757010990939,0.03,203.46,203.45,5.60521258]
[1757010991645,0.03,203.48,203.45,5.60521258]
[1757010991828,0.03,203.48,203.47,2.92853935]
[1757010992142,0.03,203.48,203.46,3.61853935]
[1757010992318,0.03,203.48,203.47,7.84326879]
[1757010992643,0.03,203.48,203.47,8.53326879]
[1757010993045,0.03,203.48,203.47,5.60472944]
[1757010993355,0.03,203.48,203.47,8.53326879]
[1757010994523,0.03,203.48,203.47,5.60472944]
[1757010994750,0.03,203.48,203.47,8.53326879]
[1757010995062,0.03,203.48,203.47,5.60472944]
[1757010995247,0.03,203.48,203.47,22.1288628]
[1757010995557,1e-08,203.51,203.48,13.59559401]
[1757010995852,1e-08,203.52,203.51,13.59559401]
[1757010996344,1e-08,203.52,203.51,17.21413336]
[1757010996558,1e-08,203.52,203.51,19.18375199]
[1757010996717,1e-08,203.52,203.51,16.25521264]
[1757010996921,1e-08,203.53,203.52,18.50911602]
[1757010997139,1e-08,203.53,203.52,22.12765537]
[1757010997351,1e-08,203.56,203.55,26.0]
[1757010997562,1e-08,203.56,203.55,39.59559401]
[1757010997857,1e-08,203.56,203.55,43.21413336]
[1757010999060,1e-08,203.56,203.55,48.12693119]
[1757011001264,1e-08,203.58,203.57,21.43644853]
[1757011001632,1e-08,203.58,203.57,22.12644853]
[1757011002765,1e-08,203.58,203.57,19.19790918]
[1757011002935,1e-08,203.58,203.57,22.12644853]
[1757011003564,1e-08,203.58,203.57,19.19790918]
[1757011003749,1e-08,203.58,203.57,21.43644853]
[1757011004072,1e-08,203.58,203.57,18.50790918]
[1757011004259,1e-08,203.58,203.57,21.43644853]
[1757011004467,1e-08,203.58,203.57,22.12644853]
[1757011005646,1e-08,203.58,203.57,25.25498788]
[1757011005959,1e-08,203.58,203.57,22.32644853]
[1757011006157,1e-08,203.58,203.57,25.25498788]
[1757011007263,1e-08,203.58,203.57,22.32644853]
[1757011007462,1e-08,203.58,203.57,25.25498788]
[1757011007645,1e-08,203.58,203.57,22.32644853]
[1757011007969,1e-08,203.58,203.57,25.25498788]
[1757011009171,2.88853936,203.64,203.58,13.59559401]
[1757011009468,2.92853935,203.63,203.57,11.65939387]
[1757011010358,2.92853935,203.63,203.57,8.73085452]
[1757011010563,2.92853935,203.63,203.57,11.65939387]
[1757011011055,40.5,203.67,203.58,13.59559401]
[1757011011264,2.92853935,203.64,203.58,13.59559401]
[1757011011457,2.92853935,203.64,203.58,16.52413336]
[1757011011856,2.92853935,203.64,203.59,14.76850371]
[1757011012047,2.92853935,203.64,203.6,4.91159135]
[1757011013166,2.92853935,203.63,203.6,4.91159135]
[1757011013474,2.92853935,203.63,203.59,19.6802885]
[1757011013766,2.92853935,203.62,203.59,19.6802885]
[1757011013970,2.92853935,203.63,203.59,19.6802885]
[1757011014562,0.03,203.64,203.59,19.6802885]
[1757011014776,2.92853935,203.63,203.59,19.6802885]
[1757011015749,2.42853935,203.63,203.59,19.6802885]
[1757011017057,2.92853935,203.62,203.59,19.6802885]
[1757011017672,0.03,203.64,203.59,19.6802885]
[1757011017869,0.03,203.64,203.6,0.72]
[1757011018253,40.49,203.64,203.6,2.92853935]
[1757011018676,40.49,203.64,203.59,22.60882785]
[1757011018878,40.49,203.64,203.59,23.32882785]
[1757011019171,0.03,203.64,203.6,0.72]
[1757011019373,0.03,203.64,203.6,2.92853935]
[1757011019680,43.45853935,203.64,203.61,4.91135013]
[1757011020268,2.95853935,203.64,203.61,4.91135013]
[1757011020478,43.43853935,203.64,203.61,4.91135013]
[1757011020776,2.92853935,203.62,203.59,14.76850371]
[1757011021157,40.51,203.64,203.59,14.76850371]
[1757011021362,2.92853935,203.62,203.59,14.76850371]
[1757011021576,2.92853935,203.6,203.59,14.76850371]
[1757011021769,2.92853935,203.6,203.57,0.12]
[1757011022256,40.48,203.6,203.57,0.84]
[1757011022569,40.48,203.61,203.58,0.72]
[1757011022769,2.92853935,203.61,203.58,0.72]
[1757011022978,40.48,203.61,203.58,0.72]
[1757011023357,43.40853935,203.61,203.57,5.03223009]
[1757011023568,43.40853935,203.61,203.57,5.75223009]
[1757011023770,43.40853935,203.61,203.57,5.03223009]
[1757011024575,40.48,203.6,203.58,0.72]
[1757011024765,40.46,203.62,203.59,14.31559401]
[1757011024968,0.03,203.64,203.6,0.72]
[1757011025168,40.46,203.63,203.6,0.72]
[1757011025560,0.03,203.64,203.61,4.91135013]
[1757011025755,40.44,203.63,203.61,5.63135013]
[1757011026161,40.44,203.63,203.61,4.91135013]
[1757011026473,40.46,203.62,203.61,4.91135013]
[1757011026780,0.03,203.64,203.61,4.91135013]
[1757011027475,40.44,203.63,203.61,4.91135013]
[1757011027851,0.03,203.64,203.61,4.91135013]
[1757011028058,0.03,203.64,203.62,0.72]
[1757011028378,0.03,203.67,203.62,0.72]
[1757011028379,0.03,203.67,203.63,16.52413336]
[1757011028580,0.03,203.67,203.66,16.52413336]
[1757011028778,0.03,203.67,203.66,21.43427771]
[1757011029093,0.03,203.67,203.66,22.15427771]
[1757011030286,0.03,203.67,203.66,19.22573836]
[1757011030492,0.03,203.67,203.66,22.15427771]
[1757011030665,2.98853935,203.67,203.61,0.72]
[1757011030872,2.92853935,203.65,203.61,5.63129544]
[1757011031575,43.28853935,203.65,203.61,4.91129544]
[1757011031776,43.28853935,203.65,203.62,0.72]
[1757011031979,0.03,203.64,203.62,0.72]
[1757011032179,0.03,203.64,203.62,5.6309144]
[1757011032359,0.03,203.64,203.61,0.3]
[1757011032562,2.92853935,203.62,203.61,0.3]
[1757011032965,40.39,203.64,203.61,3.94853935]
[1757011033187,40.39,203.64,203.62,0.72]
[1757011033475,0.03,203.64,203.62,16.52413336]
[1757011033682,0.03,203.64,203.63,3.64853935]
[1757011033876,0.03,203.64,203.63,17.24413336]
[1757011034076,0.03,203.67,203.66,21.43427771]
[1757011034277,0.03,203.67,203.66,18.50573836]
[1757011034477,0.03,203.67,203.66,19.22573836]
[1757011034986,0.03,203.67,203.65,13.59559401]
[1757011035365,0.03,203.67,203.65,14.31559401]
[1757011036294,0.03,203.67,203.63,13.59559401]
[1757011036468,0.03,203.67,203.63,14.31559401]
[1757011036885,0.03,203.67,203.64,0.72]
[1757011037372,0.03,203.67,203.63,13.59559401]
[1757011037585,0.03,203.67,203.63,14.31559401]
[1757011037974,4.56534827,203.66,203.61,10.44667736]
[1757011038495,4.56534827,203.65,203.61,5.88132909]
[1757011038665,4.90969946,203.68,203.61,5.21120848]
[1757011038870,40.34,203.68,203.62,14.26559401]
[1757011039090,4.56534827,203.66,203.62,14.26559401]
[1757011039485,4.56534827,203.66,203.63,0.67]
[1757011039788,4.56534827,203.66,203.62,4.91107332]
[1757011039981,4.56534827,203.66,203.62,5.58107332]
[1757011040498,4.56534827,203.66,203.63,0.67]
[1757011041386,4.56534827,203.64,203.59,0.67]
[1757011041574,44.90534827,203.63,203.6,0.67]
[1757011041776,44.90534827,203.62,203.6,0.67]
[1757011042177,40.34,203.62,203.6,0.67]
[1757011043094,26.06,203.67,203.59,13.59559401]
[1757011043276,30.07078373,203.69,203.62,4.91110892]
[1757011043470,0.06,203.7,203.62,5.58110892]
[1757011043471,4.56534827,203.67,203.62,5.58110892]
[1757011043670,4.56534827,203.67,203.63,0.67]
[1757011043868,26.0,203.68,203.64,0.67]
[1757011044089,40.34,203.66,203.65,0.67]
[1757011044502,4.56534827,203.68,203.63,18.16094228]
[1757011044687,40.34,203.67,203.64,0.67]
[1757011044997,4.56534827,203.68,203.64,5.58038931]
[1757011045170,40.34,203.67,203.65,0.67]
[1757011045370,40.34,203.67,203.57,38.28059083]
[1757011045581,4.56534827,203.64,203.59,5.23534827]
[1757011045807,4.56534827,203.64,203.61,13.59559401]
[1757011046103,4.56534827,203.64,203.62,0.67]
[1757011046271,40.34,203.64,203.63,0.67]
[1757011046673,40.34,203.65,203.63,5.23534827]
[1757011046886,40.34,203.66,203.64,5.23534827]
[1757011047084,4.07078373,203.74,203.66,4.91014435]
[1757011047085,40.34,203.68,203.66,4.91014435]
[1757011047295,26.0,203.71,203.67,0.67]
[1757011047471,40.34,203.69,203.68,0.67]
[1757011048305,4.13078373,203.77,203.68,0.67]
[1757011048481,4.56534827,203.73,203.68,5.23534827]
[1757011048679,4.56534827,203.74,203.69,0.67]
[1757011048882,40.34,203.72,203.7,0.67]
[1757011049208,40.34,203.72,203.7,5.57898814]
[1757011049383,4.56534827,203.74,203.7,5.57898814]
[1757011049707,40.34,203.73,203.7,5.57898814]
[1757011050394,44.90534827,203.73,203.7,5.57898814]
[1757011050780,40.34,203.72,203.71,0.67]
[1757011052089,40.34,203.72,203.68,13.59559401]
[1757011052289,40.34,203.72,203.69,0.67]
[1757011052800,44.90534827,203.72,203.68,13.59559401]
[1757011053006,44.90534827,203.72,203.68,14.26559401]
[1757011053718,26.0,203.75,203.69,0.67]
[1757011053889,4.56534827,203.74,203.69,5.23534827]
[1757011054088,40.34,203.73,203.7,5.57918016]
[1757011054417,40.34,203.73,203.71,0.67]
[1757011054714,30.56534827,203.75,203.71,0.67]
[1757011055019,40.34,203.74,203.71,0.67]
[1757011055914,40.34,203.74,203.71,5.57889879]
[1757011056418,0.03,203.73,203.71,4.90889879]
[1757011057098,0.03,203.73,203.71,0.67]
[1757011057987,0.03,203.73,203.72,0.67]
[1757011058320,0.03,203.73,203.71,0.67]
[1757011059321,0.03,203.73,203.71,5.57886827]
[1757011059497,40.32,203.72,203.71,5.57886827]
[1757011060123,40.35,203.73,203.71,5.57886827]
[1757011060314,40.35,203.73,203.72,0.67]
[1757011060484,0.03,203.73,203.72,10.14404648]
[1757011060689,40.35,203.73,203.72,10.14404648]
[1757011062094,40.35,203.73,203.72,5.57869821]
[1757011063086,40.35,203.73,203.72,0.67]
[1757011063310,40.35,203.73,203.72,5.57869821]
[1757011065200,0.03,203.73,203.72,5.57869821]
[1757011066113,0.03,203.73,203.72,0.67]
[1757011066497,0.03,203.73,203.72,5.57869821]
[1757011067207,0.03,203.73,203.71,18.50451373]
[1757011067415,0.03,203.73,203.71,19.17451373]
[1757011068003,0.03,203.73,203.72,0.69]
[1757011068207,0.03,203.73,203.71,19.19451373]
[1757011068517,0.03,203.73,203.72,0.69]
[1757011068916,0.03,203.73,203.71,14.28559401]
[1757011069216,0.03,203.73,203.71,13.59559401]
[1757011069521,0.03,203.73,203.72,0.69]
[1757011069702,0.03,203.73,203.71,13.59559401]
[1757011069896,0.03,203.73,203.68,13.59559401]
[1757011069897,4.56534827,203.72,203.68,13.59559401]
[1757011070093,40.3,203.71,203.69,0.69]
[1757011070333,44.86534827,203.71,203.68,13.59559401]
[1757011070501,40.3,203.71,203.69,0.69]
[1757011073014,40.3,203.71,203.68,13.59559401]
[1757011073212,44.86534827,203.71,203.68,13.59559401]
[1757011073399,4.56534827,203.69,203.66,13.59559401]
[1757011073607,4.56534827,203.69,203.66,0.69]
[1757011073805,45.20896605,203.71,203.66,0.69]
[1757011074017,0.03,203.73,203.67,0.69]
[1757011074225,4.56534827,203.71,203.67,0.69]
[1757011074433,4.56534827,203.71,203.68,0.69]
[1757011075111,40.3,203.7,203.69,0.69]
[1757011075325,4.56534827,203.72,203.69,0.69]
[1757011075506,40.3,203.71,203.7,0.69]
[1757011075712,0.03,203.73,203.71,13.59559401]
[1757011075917,0.03,203.73,203.71,14.28559401]
[1757011077027,0.03,203.73,203.72,0.69]
[1757011079319,0.03,203.73,203.71,18.50431281]
[1757011079521,0.03,203.73,203.71,19.19431281]
[1757011079725,0.03,203.73,203.72,0.69]
[1757011080117,4.59534827,203.73,203.68,0.69]
[1757011080427,44.84534827,203.72,203.69,0.69]
[1757011081212,40.28,203.72,203.69,13.59559401]
[1757011081435,44.84534827,203.72,203.69,14.28559401]
[1757011083610,40.28,203.71,203.7,0.69]
[1757011083816,40.28,203.72,203.71,13.59559401]
[1757011084338,40.28,203.72,203.71,14.28559401]
[1757011085138,0.03,203.73,203.71,14.28559401]
[1757011085737,0.03,203.73,203.72,0.69]
[1757011085912,0.03,203.73,203.7,13.59559401]
[1757011086117,0.03,203.73,203.71,0.69]
[1757011086934,0.03,203.73,203.71,5.59885473]
[1757011087233,0.03,203.73,203.72,18.16094228]
[1757011087414,0.03,203.73,203.72,18.85094228]
[1757011087610,0.03,203.73,203.72,14.28559401]
[1757011089019,0.03,203.73,203.72,19.19429222]
[1757011089223,0.03,203.73,203.72,14.28559401]
[1757011089744,0.03,203.73,203.72,19.19429222]
[1757011089929,0.03,203.73,203.72,14.28559401]
[1757011090125,0.03,203.73,203.72,23.75964049]
[1757011090820,0.03,203.76,203.73,13.59559401]
[1757011091028,0.03,203.76,203.75,23.06891774]
[1757011091523,0.03,203.76,203.75,19.19356947]
[1757011091727,0.03,203.76,203.75,23.75891774]
[1757011094048,0.03,203.76,203.75,19.19356947]
[1757011094219,0.03,203.76,203.75,23.75891774]
[1757011096527,0.03,203.76,203.75,19.19356947]
[1757011097051,0.03,203.76,203.75,18.50356947]
[1757011097258,0.03,203.76,203.75,19.19356947]
[1757011098241,0.03,203.76,203.75,23.75891774]
[1757011098650,0.03,203.76,203.75,19.19356947]
[1757011101436,0.03,203.76,203.75,22.11191693]
[1757011103428,4.2918861,203.88,203.78,13.59559401]
[1757011103626,4.2918861,203.88,203.83,13.59559401]
[1757011103627,0.2,203.88,203.83,13.59559401]
[1757011103853,2.91834746,203.87,203.85,13.59559401]
[1757011104634,26.2,203.88,203.85,13.59559401]
[1757011104841,29.11834746,203.88,203.85,13.59559401]
[1757011105137,0.2,203.88,203.85,13.59559401]
[1757011105337,2.91834746,203.87,203.85,13.59559401]
[1757011105545,3.11834746,203.88,203.85,13.59559401]
[1757011106457,3.11834746,203.88,203.85,14.31559401]
[1757011106961,3.11834746,203.88,203.85,19.22109655]
[1757011107148,0.2,203.88,203.85,18.50109655]
[1757011107353,0.2,203.88,203.86,0.72]
[1757011108264,3.11834746,203.88,203.85,13.59559401]
[1757011108444,0.2,203.88,203.85,14.31559401]
[1757011108758,0.2,203.88,203.86,0.72]
[1757011109946,0.2,203.88,203.85,13.59559401]
[1757011110339,0.2,203.88,203.85,14.31559401]
[1757011110753,0.2,203.88,203.86,0.72]
[1757011113339,3.11834746,203.88,203.85,13.59559401]
[1757011113534,3.11834746,203.88,203.85,14.31559401]
[1757011113858,3.11834746,203.88,203.86,0.72]
[1757011115052,0.2,203.88,203.87,0.72]
[1757011115251,0.2,203.88,203.86,13.59559401]
[1757011115446,3.11834746,203.88,203.86,14.31559401]
[1757011115964,3.11834746,203.88,203.87,0.72]
[1757011116151,3.11834746,203.88,203.85,13.59559401]
[1757011116349,3.11834746,203.88,203.86,0.72]
[1757011116547,0.2,203.88,203.85,13.59559401]
[1757011116754,0.2,203.88,203.86,0.72]
[1757011117064,0.2,203.88,203.87,14.31559401]
[1757011117369,3.11834746,203.88,203.86,0.72]
[1757011117563,0.2,203.88,203.87,0.72]
[1757011117765,0.2,203.88,203.85,13.59559401]
[1757011118063,3.11834746,203.88,203.86,0.72]
[1757011119157,3.11834746,203.88,203.85,13.59559401]
[1757011119361,0.2,203.88,203.85,14.31559401]
[1757011119639,0.2,203.88,203.87,16.51394147]
[1757011120153,0.2,203.88,203.87,14.31559401]
[1757011120742,0.2,203.88,203.87,17.23394147]
[1757011121161,0.2,203.88,203.87,22.13902804]
[1757011123645,0.2,203.88,203.87,19.22068058]
[1757011124050,0.2,203.88,203.87,22.13902804]
[1757011127267,0.2,203.88,203.87,19.22068058]
[1757011127572,0.2,203.88,203.87,22.13902804]
[1757011128655,0.2,203.88,203.87,19.22068058]
[1757011128856,0.2,203.88,203.87,22.13902804]
[1757011129655,0.2,203.88,203.87,19.22068058]
[1757011130061,0.2,203.88,203.87,22.13902804]
[1757011132176,0.03,203.91,203.87,34.40174447]
[1757011132384,0.03,203.91,203.9,16.51394147]
[1757011132878,0.03,203.91,203.9,17.21394147]
[1757011133379,0.03,203.91,203.9,16.26134087]
[1757011133580,0.03,203.91,203.9,13.59559401]
[1757011133879,0.03,203.91,203.9,18.49995889]
[1757011134982,0.03,203.91,203.9,19.19995889]
[1757011135676,0.03,203.91,203.9,22.11830635]
[1757011136254,0.03,203.91,203.9,19.19995889]
[1757011136458,0.03,203.91,203.9,18.49995889]
[1757011136695,0.03,203.91,203.9,22.11830635]
[1757011136982,0.03,203.91,203.9,19.19995889]
[1757011137154,0.03,203.91,203.9,22.11830635]
[1757011137575,0.03,203.91,203.9,18.49995889]
[1757011137755,0.03,203.91,203.9,19.19995889]
[1757011139684,0.03,203.91,203.9,13.59559401]
[1757011140263,3.09834746,203.91,203.86,13.59559401]
[1757011140461,2.91834746,203.89,203.86,13.59559401]
[1757011140669,2.91834746,203.9,203.86,13.59559401]
[1757011140866,0.03,203.91,203.87,0.7]
[1757011141082,0.03,203.91,203.9,16.51394147]
[1757011141280,0.03,203.91,203.9,13.59559401]
[1757011141976,2.94834746,203.91,203.86,4.90526479]
[1757011142286,2.94834746,203.91,203.87,13.59559401]
[1757011142492,2.91834746,203.89,203.85,0.7]
[1757011142676,2.91834746,203.89,203.86,13.59559401]
[1757011142868,2.94834746,203.89,203.84,13.59559401]
[1757011143070,0.03,203.89,203.86,13.59559401]
[1757011144291,3.06834746,203.88,203.84,13.59559401]
[1757011144476,2.91834746,203.88,203.84,14.29559401]
[1757011145569,2.91834746,203.87,203.84,13.59559401]
[1757011145767,0.03,203.89,203.84,14.29559401]
[1757011146086,2.94834746,203.89,203.86,13.59559401]
[1757011147281,0.03,203.89,203.87,0.7]
[1757011147585,0.03,203.89,203.86,18.50084487]
[1757011147988,2.94834746,203.89,203.86,19.20084487]
[1757011148307,0.03,203.89,203.87,0.7]
[1757011148593,0.03,203.89,203.88,13.59559401]
[1757011149192,0.03,203.89,203.88,19.20043999]
[1757011150068,0.03,203.89,203.88,22.11878745]
[1757011150684,0.03,203.89,203.88,19.20043999]
[1757011150994,0.03,203.89,203.88,22.11878745]
[1757011152387,0.03,203.89,203.88,26.27820229]
[1757011153891,0.03,203.92,203.91,39.59559401]
[1757011154204,0.03,203.92,203.91,46.18230707]
[1757011154388,0.03,203.92,203.91,46.88230707]
[1757011154700,0.03,203.92,203.91,48.84786075]
[1757011155206,0.2,203.94,203.91,49.33827318]
[1757011155494,2.91834746,204.04,203.94,13.59559401]
[1757011155697,3.06834746,204.04,203.99,13.59559401]
[1757011155882,2.91834746,204.03,204.01,13.59559401]
[1757011156082,26.0,204.03,204.01,13.59559401]
[1757011156698,2.91834746,204.04,204.01,13.59559401]
[1757011156878,29.06834746,204.04,204.01,13.59559401]
[1757011157077,3.06834746,204.03,203.99,13.59559401]
[1757011157388,0.15,204.03,203.99,13.59559401]
[1757011157586,3.06834746,204.03,203.99,13.59559401]
[1757011157783,3.06834746,204.02,203.97,13.59559401]
[1757011157991,2.91834746,204.01,203.96,16.51394147]
[1757011158285,2.91834746,204.01,203.96,14.31559401]
[1757011158681,2.91834746,204.01,203.96,17.23394147]
[1757011159087,26.0,204.03,203.98,13.59559401]
[1757011159286,28.91834746,204.03,203.98,13.59559401]
[1757011159490,30.69986531,204.03,203.98,14.31559401]
[1757011159680,26.15,204.03,203.98,14.31559401]
[1757011159886,30.69986531,204.03,203.98,18.49800837]
[1757011160302,26.15,204.03,203.98,18.49800837]
[1757011160502,30.69986531,204.03,203.98,18.49800837]
[1757011160882,30.69986531,204.03,203.98,19.21800837]
[1757011161077,30.54986531,204.03,203.98,19.21800837]
[1757011161284,30.69986531,204.03,203.98,19.21800837]
[1757011161813,26.15,204.03,203.98,19.21800837]
[1757011162013,30.69986531,204.03,203.98,19.21800837]
[1757011162512,4.57986531,204.04,204.0,13.59559401]
[1757011162806,44.61986531,204.04,204.0,13.59559401]
[1757011163102,40.07,204.04,204.0,13.59559401]
[1757011163311,44.76986531,204.04,204.0,13.59559401]
[1757011164320,4.54986531,204.02,203.97,14.03214498]
[1757011164613,4.54986531,204.01,203.98,13.59559401]
[1757011164822,4.69986531,204.01,203.98,13.59559401]
[1757011164989,4.54986531,204.01,203.98,13.59559401]
[1757011165890,4.54986531,204.01,203.96,0.72]
[1757011166093,4.54986531,204.01,203.96,13.59559401]
[1757011166094,4.69986531,204.0,203.96,13.59559401]
[1757011167116,4.69986531,204.0,203.94,5.62325222]
[1757011167117,9.60183574,204.0,203.94,19.21884623]
[1757011167302,9.60183574,204.0,203.96,13.59559401]
[1757011167506,9.45183574,204.0,203.96,13.59559401]
[1757011168211,4.54986531,203.97,203.94,13.59559401]
[1757011168406,4.54986531,203.96,203.91,4.54986531]
[1757011168615,4.54986531,203.96,203.93,13.59559401]
[1757011168808,4.54986531,203.95,203.93,13.59559401]
[1757011169401,4.54986531,203.95,203.93,14.31559401]
[1757011169604,4.54986531,203.96,203.93,14.31559401]
[1757011171898,4.54986531,203.94,203.91,0.72]
[1757011172115,4.54986531,203.94,203.92,13.59559401]
[1757011173001,4.54986531,203.93,203.9,0.72]
[1757011173396,40.02,203.92,203.9,0.72]
[1757011173911,40.02,203.92,203.91,0.72]
[1757011174412,0.15,203.96,203.92,13.59559401]
[1757011174413,26.0,203.96,203.92,13.59559401]
[1757011174710,9.45185623,204.0,203.94,4.54986531]
[1757011174909,40.02,203.99,203.95,5.26986531]
[1757011175099,40.02,203.99,203.96,0.72]
[1757011175822,4.54986531,204.01,203.96,5.26986531]
[1757011176019,8.64175141,204.03,203.98,4.54986531]
[1757011176323,40.02,204.02,203.99,0.72]
[1757011176704,40.02,204.02,203.97,18.49805537]
[1757011176901,40.02,204.02,203.98,0.72]
[1757011177328,9.45113158,204.03,203.98,0.72]
[1757011177629,44.54986531,204.02,203.99,0.72]
[1757011177928,40.0,204.01,204.0,0.72]
[1757011178228,40.0,204.01,203.99,13.59559401]